[Event "FIDE Womens World Cup 2021"]
[Site "Sochi"]
[Date "2021.07.12"]
[Round "1.27"]
[White "Ryjanova, Julia"]
[Black "Tsolakidou, Stavroula"]
[Result "1/2-1/2"]
[ECO "A06"]
[WhiteElo "2299"]
[BlackElo "2389"]
[Annotator "NA"]
[PlyCount "92"]
[EventDate "2021.07.12"]
[EventType "k.o."]
[EventCountry "RUS"]
[SourceTitle "playchess.com"]
[Source "ChessBase"]
[SourceQuality "1"]
[TimeControl "40/5400+30:1800+30"]

1. Nf3 {[%emt 0:00:05]} d5 {[%emt 0:00:18]} 2. c4 {[%emt 0:00:12]} c6 {[%emt 0:00:21]} 3. e3 {[%emt 0:03:22]} Nf6 {[%emt 0:00:11]} 4. Nc3 {[%emt 0:04:08]} e6 {[%emt 0:00:13]} 5. b3 {[%emt 0:12:24]} Nbd7 {[%emt 0:09:49]} 6. d4 {[%emt 0:23:32]} Bb4 {[%emt 0:03:05]} 7. Bd2 {[%emt 0:00:23]} O-O {[%emt 0:00:48]} 8. Qc2 {[%emt 0:02:41]} Qe7 {[%emt 0:03:06]} 9. Be2 $11 {[%emt 0:06:46]} e5 {[%emt 0:07:42]} 10. a3 {[%emt 0:11:39]} Bd6 {[%emt 0:11:01]} 11. dxe5 {[%emt 0:00:32]} Nxe5 {[%emt 0:02:31]} 12. cxd5 {[%emt 0:00:21]} Nxd5 {[%emt 0:11:19]} 13. Nxd5 {[%emt 0:07:12]} cxd5 {[%emt 0:00:05]} 14. Nxe5 {[%emt 0:05:31]} Bxe5 {[%emt 0:02:35]} 15. Bb4 {[%emt 0:02:48]} Qf6 {[%emt 0:01:13]} 16. Rc1 {[%emt 0:08:40]} Bf5 {[%emt 0:01:30]} 17. Qd2 {[%emt 0:00:33]} Rfd8 {[%emt 0:03:35]} 18. O-O {[%emt 0:03:05]} d4 {[%emt 0:01:16]} 19. Bf3 {[%emt 0:01:37]} dxe3 {[%emt 0:03:45]} 20. Qxe3 {[%emt 0:00:05]} Rd3 {[%emt 0:02:47]} 21. Qe2 {[%emt 0:00:16]} Re8 {[%emt 0:00:21]} 22. g3 {[%emt 0:03:08]} Rdd8 {[%emt 0:08:44]} 23. Rfe1 {[%emt 0:00:17]} Bd3 {[%emt 0:12:04]} 24. Qe3 {[%emt 0:00:34]} Bb5 {[%emt 0:00:26]} 25. Rcd1 {[%emt 0:01:13]} Bd4 {[%emt 0:09:41]} 26. Qf4 {[%emt 0:00:12]} Qxf4 {[%emt 0:02:43]} 27. gxf4 {[%emt 0:00:02]} Bb6 {[%emt 0:01:14]} 28. Rxd8 {[%emt 0:01:05]} Rxd8 {[%emt 0:00:08]} 29. Bxb7 {[%emt 0:00:21]} a5 {[%emt 0:00:34]} 30. Bc3 {[%emt 0:00:59]} Rd3 {[%emt 0:00:49]} 31. Ba6 {[%emt 0:00:40]} Rxc3 {[%emt 0:00:18]} 32. Bxb5 {[%emt 0:00:02]} g6 {[%emt 0:00:26]} 33. Ba4 {[%emt 0:01:39]} Rf3 {[%emt 0:00:16]} 34. Re2 {[%emt 0:00:13]} Rxf4 {[%emt 0:00:06]} 35. Bc6 {[%emt 0:00:38]} Bc5 {[%emt 0:00:57]} 36. a4 {[%emt 0:00:26]} Rg4+ {[%emt 0:00:37]} 37. Kf1 {[%emt 0:00:39]} Rd4 {[%emt 0:01:03]} 38. Bb5 {[%emt 0:00:35]} Rf4 {[%emt 0:00:52]} 39. Bc4 {[%emt 0:00:20]} Kg7 {[%emt 0:00:08]} 40. Kg2 {[%emt 0:00:52]} g5 {[%emt 0:01:16]} 41. f3 {[%emt 0:05:46]} h6 {[%emt 0:12:35]} 42. Re5 {[%emt 0:07:44]} Bb4 {[%emt 0:00:48]} 43. Rd5 {[%emt 0:09:08]} Kg6 {[%emt 0:03:21]} 44. Rd7 {[%emt 0:03:55]} h5 {[%emt 0:01:05]} 45. h3 {[%emt 0:01:15]} Kg7 {[%emt 0:01:12]} 46. Rb7 {[%emt 0:01:47]} Bc3 {[%emt 0:03:57]} 1/2-1/2

[Event "FIDE Womens World Cup 2021"]
[Site "Sochi"]
[Date "2021.07.12"]
[Round "1.28"]
[White "Padmini, Rout"]
[Black "Fataliyeva, Ulviyya"]
[Result "1-0"]
[ECO "B12"]
[WhiteElo "2370"]
[BlackElo "2253"]
[Annotator "NA"]
[PlyCount "71"]
[EventDate "2021.07.12"]
[EventType "k.o."]
[EventCountry "RUS"]
[SourceTitle "playchess.com"]
[Source "ChessBase"]
[SourceQuality "1"]
[TimeControl "40/5400+30:1800+30"]

1. e4 {[%emt 0:00:09]} c6 {[%emt 0:00:07]} 2. d4 {[%emt 0:00:38]} d5 {[%emt 0:00:06]} 3. e5 {[%emt 0:00:34]} Bf5 {[%emt 0:00:07]} 4. Nd2 {[%emt 0:01:48]} e6 {[%emt 0:01:04]} 5. Nb3 {[%emt 0:00:08]} Nd7 {[%emt 0:03:04]} 6. Nf3 {[%emt 0:01:13]} h6 {[%emt 0:03:51]} 7. Be2 {[%emt 0:01:10]} a6 {[%emt 0:03:44]} 8. O-O {[%emt 0:04:19]} c5 {[%emt 0:01:51]} 9. Be3 {[%emt 0:07:34]} c4 {[%emt 0:09:39]} 10. Nbd2 {[%emt 0:00:41]} b5 {[%emt 0:02:53]} 11. c3 {[%emt 0:00:37]} Nb6 {[%emt 0:01:48]} 12. Ne1 $11 {[%emt 0:04:04]} Ne7 {[%emt 0:14:11]} 13. f4 {[%emt 0:01:08]} Bh7 {[%emt 0:00:31]} 14. Ndf3 {[%emt 0:05:48]} Be4 {[%emt 0:10:27]} 15. Qc1 {[%emt 0:05:57]} Rc8 {[%emt 0:03:08]} 16. Bf2 {[%emt 0:07:11]} Qd7 {[%emt 0:02:00]} 17. Bd1 {[%emt 0:03:51]} a5 {[%emt 0:08:05]} 18. a3 {[%emt 0:04:24]} b4 {[%emt 0:09:54]} 19. axb4 {[%emt 0:04:49]} axb4 {[%emt 0:05:18]} 20. Bc2 {[%emt 0:00:12]} Bxf3 {[%emt 0:00:34]} 21. Nxf3 {[%emt 0:00:28]} b3 {[%emt 0:00:10]} 22. Bb1 {[%emt 0:00:58]} g6 {[%emt 0:03:34]} 23. g4 {[%emt 0:01:35]} h5 {[%emt 0:01:35]} 24. h3 {[%emt 0:00:31]} Bh6 {[%emt 0:03:26]} 25. Bh4 {[%emt 0:03:46]} Ra8 {[%emt 0:03:27]} 26. Rxa8+ {[%emt 0:00:50]} Nxa8 {[%emt 0:00:01]} 27. Bf6 {[%emt 0:00:58]} Rg8 {[%emt 0:00:56]} 28. gxh5 {[%emt 0:06:27]} gxh5+ {[%emt 0:05:54]} 29. Ng5 {[%emt 0:00:13]} Ng6 {[%emt 0:02:23]} 30. Kh1 {[%emt 0:01:43]} Nb6 {[%emt 0:00:48]} 31. Qd1 {[%emt 0:04:35]} h4 {[%emt 0:00:48]} 32. Qh5 {[%emt 0:01:22]} Bxg5 {[%emt 0:00:08]} 33. fxg5 {[%emt 0:06:04]} Na4 {[%emt 0:00:52]} 34. Qh7 {[%emt 0:01:39]} Kf8 {[%emt 0:00:26]} 35. Bxg6 {[%emt 0:00:38]} Rxg6 {[%emt 0:00:05]} 36. Qh8+ {[%emt 0:00:08]} 1-0

[Event "FIDE Womens World Cup 2021"]
[Site "Sochi"]
[Date "2021.07.12"]
[Round "1.29"]
[White "Mamedjarova, Turkan"]
[Black "Ordaz Valdes, Lisandra Teresa"]
[Result "1/2-1/2"]
[ECO "A06"]
[WhiteElo "2309"]
[BlackElo "2369"]
[Annotator "NA"]
[PlyCount "88"]
[EventDate "2021.07.12"]
[EventType "k.o."]
[EventCountry "RUS"]
[SourceTitle "playchess.com"]
[Source "ChessBase"]
[SourceQuality "1"]
[TimeControl "40/5400+30:1800+30"]

1. Nf3 {[%emt 0:00:13]} d5 {[%emt 0:00:16]} 2. g3 {[%emt 0:00:17]} Nf6 {[%emt 0:00:30]} 3. Bg2 {[%emt 0:00:14]} e6 {[%emt 0:00:47]} 4. O-O {[%emt 0:00:35]} c5 {[%emt 0:01:21]} 5. d3 {[%emt 0:01:28]} Nc6 {[%emt 0:00:23]} 6. Nbd2 {[%emt 0:00:21]} Be7 {[%emt 0:01:50]} 7. e4 {[%emt 0:01:27]} Qc7 {[%emt 0:01:54]} 8. Re1 {[%emt 0:01:22]} b6 {[%emt 0:06:43]} 9. Qe2 {[%emt 0:06:34]} Bb7 {[%emt 0:04:24]} 10. e5 $11 {[%emt 0:07:49]} Nd7 {[%emt 0:00:10]} 11. Nf1 {[%emt 0:04:54]} h6 {[%emt 0:03:07]} 12. h4 {[%emt 0:03:49]} O-O-O {[%emt 0:01:12]} 13. c3 {[%emt 0:05:08]} Kb8 {[%emt 0:08:42]} 14. d4 {[%emt 0:13:57]} Rhg8 {[%emt 0:18:51]} 15. h5 g6 {[%emt 0:02:19]} 16. hxg6 {[%emt 0:10:12]} Rxg6 {[%emt 0:00:31]} 17. Bf4 {[%emt 0:00:57]} c4 {[%emt 0:19:04]} 18. Ne3 {[%emt 0:06:42]} Na5 {[%emt 0:02:36]} 19. Nd2 {[%emt 0:13:40]} Bg5 {[%emt 0:12:14]} 20. Bxg5 {[%emt 0:01:11]} hxg5 {[%emt 0:00:06]} 21. Ng4 {[%emt 0:01:21]} Rh8 {[%emt 0:02:33]} 22. Qf3 {[%emt 0:02:59]} Rg7 {[%emt 0:00:48]} 23. Kf1 {[%emt 0:01:35]} Nc6 {[%emt 0:01:51]} 24. Ke2 {[%emt 0:02:58]} Rf8 {[%emt 0:00:59]} 25. Rh1 {[%emt 0:01:30]} f5 {[%emt 0:03:13]} 26. exf6 {[%emt 0:01:02]} Rgf7 {[%emt 0:02:18]} 27. Rh6 {[%emt 0:00:53]} e5 {[%emt 0:00:37]} 28. Rah1 {[%emt 0:01:26]} exd4 {[%emt 0:00:23]} 29. Rh8 {[%emt 0:01:42]} Nce5 {[%emt 0:03:07]} 30. Nxe5 {[%emt 0:01:54]} Qxe5+ {[%emt 0:00:29]} 31. Kd1 {[%emt 0:01:31]} Rxf6 {[%emt 0:01:23]} 32. Qg4 {[%emt 0:00:54]} Rxf2 {[%emt 0:01:16]} 33. Rxf8+ {[%emt 0:01:16]} Nxf8 {[%emt 0:00:06]} 34. Re1 {[%emt 0:00:29]} Qd6 {[%emt 0:00:32]} 35. Re8+ {[%emt 0:00:38]} Kc7 {[%emt 0:00:10]} 36. Bh3 {[%emt 0:00:24]} Nd7 {[%emt 0:00:36]} 37. Qxg5 {[%emt 0:01:53]} dxc3 {[%emt 0:00:29]} 38. Qd8+ {[%emt 0:01:15]} Kc6 {[%emt 0:00:36]} 39. Re6 {[%emt 0:00:51]} Rxd2+ {[%emt 0:00:07]} 40. Ke1 {[%emt 0:01:50]} Qxe6+ {[%emt 0:01:07]} 41. Bxe6 {[%emt 0:30:03]} Ne5 {[%emt 0:05:05]} 42. bxc3 {[%emt 0:00:00]} Nf3+ {[%emt 0:00:18]} 43. Kf1 {[%emt 0:00:00]} Nh2+ {[%emt 0:00:09]} 44. Ke1 {[%emt 0:00:00]} Nf3+ {[%emt 0:00:07]} 1/2-1/2

[Event "FIDE Womens World Cup 2021"]
[Site "Sochi"]
[Date "2021.07.12"]
[Round "1.30"]
[White "Kulon, Klaudia"]
[Black "Yu, Jennifer"]
[Result "1/2-1/2"]
[ECO "B26"]
[WhiteElo "2363"]
[BlackElo "2289"]
[Annotator "NA"]
[PlyCount "139"]
[EventDate "2021.07.12"]
[EventType "k.o."]
[EventCountry "RUS"]
[SourceTitle "playchess.com"]
[Source "ChessBase"]
[SourceQuality "1"]
[TimeControl "40/5400+30:1800+30"]

1. e4 {[%emt 0:00:03]} c5 {[%emt 0:00:24]} 2. Nc3 {[%emt 0:00:10]} Nc6 {[%emt 0:00:21]} 3. g3 {[%emt 0:00:32]} g6 {[%emt 0:00:26]} 4. Bg2 {[%emt 0:00:04]} Bg7 {[%emt 0:00:25]} 5. d3 {[%emt 0:00:09]} d6 {[%emt 0:01:39]} 6. Be3 {[%emt 0:00:18]} Rb8 {[%emt 0:03:07]} 7. Qd2 {[%emt 0:00:09]} b5 {[%emt 0:02:03]} 8. Nge2 {[%emt 0:00:07]} Nd4 {[%emt 0:02:59]} 9. O-O {[%emt 0:00:18]} b4 {[%emt 0:05:00]} 10. Nd1 {[%emt 0:00:07]} e5 {[%emt 0:00:05]} 11. Nc1 {[%emt 0:03:23]} Ne7 {[%emt 0:00:47]} 12. c3 {[%emt 0:00:49]} bxc3 {[%emt 0:01:40]} 13. bxc3 {[%emt 0:00:02]} Ne6 {[%emt 0:00:16]} 14. f4 {[%emt 0:05:45]} exf4 {[%emt 0:01:41]} 15. gxf4 {[%emt 0:08:06]} f5 {[%emt 0:00:05]} 16. Ne2 {[%emt 0:01:13]} O-O $17 {[%emt 0:07:45]} 17. Bf2 {[%emt 0:04:16]} Ba6 {[%emt 0:04:34]} 18. Bh4 {[%emt 0:03:11]} Qd7 {[%emt 0:00:28]} 19. Ne3 {[%emt 0:03:40]} fxe4 {[%emt 0:02:55]} 20. Bxe4 {[%emt 0:01:55]} d5 {[%emt 0:07:50]} 21. Bxe7 {[%emt 0:13:56]} dxe4 {[%emt 0:00:07]} 22. Bxf8 {[%emt 0:00:22]} Rxf8 {[%emt 0:00:38]} 23. Rad1 {[%emt 0:13:49]} exd3 {[%emt 0:25:58]} 24. c4 {[%emt 0:06:15]} Nd4 {[%emt 0:03:40]} 25. Ng3 {[%emt 0:03:14]} Bb7 {[%emt 0:07:36]} 26. Qxd3 {[%emt 0:03:14]} Nf3+ {[%emt 0:02:45]} 27. Rxf3 {[%emt 0:00:05]} Qxd3 {[%emt 0:00:03]} 28. Rxd3 {[%emt 0:00:03]} Bxf3 {[%emt 0:00:03]} 29. Nef5 {[%emt 0:00:43]} Bg4 {[%emt 0:01:27]} 30. Nxg7 {[%emt 0:00:29]} Kxg7 {[%emt 0:00:08]} 31. Rd5 {[%emt 0:02:01]} Rxf4 {[%emt 0:00:11]} 32. Rxc5 {[%emt 0:00:09]} Be6 {[%emt 0:02:55]} 33. Rc7+ {[%emt 0:02:17]} Rf7 {[%emt 0:00:04]} 34. Rc6 {[%emt 0:03:39]} Bh3 {[%emt 0:00:35]} 35. Rd6 {[%emt 0:00:04]} Rf4 {[%emt 0:08:09]} 36. c5 {[%emt 0:01:56]} h5 {[%emt 0:00:05]} 37. Rd1 {[%emt 0:01:41]} Rc4 {[%emt 0:02:33]} 38. Rd5 {[%emt 0:02:00]} Rc2 {[%emt 0:01:42]} 39. Rd3 {[%emt 0:02:30]} Rxc5 {[%emt 0:02:05]} 40. Ra3 {[%emt 0:01:26]} a5 {[%emt 0:03:18]} 41. Ne4 {[%emt 0:31:12]} Rc1+ {[%emt 0:31:23]} 42. Kf2 {[%emt 0:02:49]} Rc2+ {[%emt 0:00:00]} 43. Kg3 {[%emt 0:00:00]} Bf1 {[%emt 0:00:00]} 44. h3 {[%emt 0:00:00]} h4+ {[%emt 0:00:00]} 45. Kf4 {[%emt 0:00:00]} Bg2 {[%emt 0:00:00]} 46. Rxa5 {[%emt 0:00:00]} Rc4 {[%emt 0:00:00]} 47. Re5 {[%emt 0:00:00]} Ra4 {[%emt 0:00:00]} 48. Re8 {[%emt 0:00:00]} Kf7 {[%emt 0:03:22]} 49. Re5 {[%emt 0:00:00]} Kf8 {[%emt 0:00:35]} 50. Re6 {[%emt 0:00:00]} Kg7 {[%emt 0:00:30]} 51. Re8 {[%emt 0:00:00]} Rxa2 {[%emt 0:00:07]} 52. Ng5 {[%emt 0:00:00]} Ra4+ {[%emt 0:00:17]} 53. Ke5 {[%emt 0:00:00]} Ra5+ {[%emt 0:00:26]} 54. Kf4 {[%emt 0:00:00]} Bd5 {[%emt 0:00:32]} 55. Rd8 {[%emt 0:00:00]} Ra4+ {[%emt 0:00:52]} 56. Ke5 {[%emt 0:00:38]} Bb3 {[%emt 0:00:10]} 57. Ne4 {[%emt 0:05:25]} Ra5+ {[%emt 0:00:41]} 58. Kf4 {[%emt 0:00:04]} Be6 {[%emt 0:00:06]} 59. Ng5 {[%emt 0:02:02]} Bf5 {[%emt 0:00:30]} 60. Rb8 {[%emt 0:00:51]} Ra4+ {[%emt 0:01:08]} 61. Ke5 {[%emt 0:00:02]} Ra3 {[%emt 0:00:25]} 62. Kf4 {[%emt 0:00:41]} Ra7 {[%emt 0:00:49]} 63. Nf3 {[%emt 0:01:55]} Kf6 {[%emt 0:00:45]} 64. Rb6+ {[%emt 0:00:06]} Be6 {[%emt 0:00:30]} 65. Nd4 {[%emt 0:00:19]} g5+ {[%emt 0:00:16]} 66. Ke4 {[%emt 0:00:22]} Re7 {[%emt 0:00:04]} 67. Nf5 {[%emt 0:01:11]} Ra7 {[%emt 0:00:49]} 68. Nd4 {[%emt 0:00:04]} Re7 {[%emt 0:00:29]} 69. Nf5 {[%emt 0:00:03]} Ra7 {[%emt 0:00:30]} 70. Nd4 {[%emt 0:00:04]} 1/2-1/2

[Event "FIDE Womens World Cup 2021"]
[Site "Sochi"]
[Date "2021.07.12"]
[Round "1.31"]
[White "Alinasab, Mobina"]
[Black "Yildiz Kadioglu, Betul Cemre"]
[Result "0-1"]
[ECO "C54"]
[WhiteElo "2317"]
[BlackElo "2362"]
[Annotator "NA"]
[PlyCount "52"]
[EventDate "2021.07.12"]
[EventType "k.o."]
[EventCountry "RUS"]
[SourceTitle "playchess.com"]
[Source "ChessBase"]
[SourceQuality "1"]
[TimeControl "40/5400+30:1800+30"]

1. e4 {[%emt 0:00:04]} e5 {[%emt 0:00:07]} 2. Nf3 {[%emt 0:00:15]} Nc6 {[%emt 0:00:09]} 3. Bc4 {[%emt 0:00:06]} Bc5 {[%emt 0:00:07]} 4. c3 {[%emt 0:00:05]} Nf6 {[%emt 0:00:12]} 5. d4 {[%emt 0:00:13]} exd4 {[%emt 0:00:12]} 6. e5 {[%emt 0:00:07]} d5 {[%emt 0:00:23]} 7. Bb5 {[%emt 0:00:27]} Ne4 {[%emt 0:00:40]} 8. cxd4 {[%emt 0:00:14]} Bb6 {[%emt 0:00:22]} 9. Nc3 {[%emt 0:00:19]} O-O {[%emt 0:01:35]} 10. Be3 {[%emt 0:00:18]} Bg4 {[%emt 0:01:22]} 11. h3 {[%emt 0:00:29]} Bh5 {[%emt 0:00:19]} 12. Qc2 {[%emt 0:00:13]} Ba5 {[%emt 0:00:29]} 13. O-O {[%emt 0:02:14]} Bxf3 {[%emt 0:01:17]} 14. gxf3 {[%emt 0:00:38]} Ng5 {[%emt 0:00:23]} 15. Kg2 {[%emt 0:13:29]} Bxc3 {[%emt 0:07:24]} 16. Qxc3 {[%emt 0:08:23]} Ne6 {[%emt 0:06:20]} 17. Bxc6 {[%emt 0:23:37]} bxc6 {[%emt 0:00:06]} 18. Qxc6 {[%emt 0:00:26]} Rb8 {[%emt 0:01:58]} 19. Qc3 {[%emt 0:07:47]} c5 {[%emt 0:08:44]} 20. Rfd1 {[%emt 0:13:43]} cxd4 {[%emt 0:06:35]} 21. Bxd4 {[%emt 0:00:23]} Nf4+ {[%emt 0:05:01]} 22. Kf1 {[%emt 0:00:09]} Qd7 {[%emt 0:04:14]} 23. Qa3 {[%emt 0:03:25]} Rfc8 {[%emt 0:10:47]} 24. Bc3 {[%emt 0:05:07]} Qxh3+ {[%emt 0:01:57]} 25. Ke1 {[%emt 0:00:44]} Qxf3 {[%emt 0:00:44]} 26. Qa6 {[%emt 0:00:18]} Rc4 {[%emt 0:00:40]} 0-1

[Event "FIDE Womens World Cup 2021"]
[Site "Sochi"]
[Date "2021.07.12"]
[Round "1.32"]
[White "Aulia, Medina Warda"]
[Black "Schneider, Jana"]
[Result "1-0"]
[ECO "C50"]
[WhiteElo "2360"]
[BlackElo "2353"]
[Annotator "NA"]
[PlyCount "107"]
[EventDate "2021.07.12"]
[EventType "k.o."]
[EventCountry "RUS"]
[SourceTitle "playchess.com"]
[Source "ChessBase"]
[SourceQuality "1"]
[TimeControl "40/5400+30:1800+30"]

1. e4 {[%emt 0:00:03]} e5 {[%emt 0:00:08]} 2. Nf3 {[%emt 0:00:06]} Nc6 {[%emt 0:00:06]} 3. Bc4 {[%emt 0:00:08]} Bc5 {[%emt 0:00:09]} 4. O-O {[%emt 0:00:10]} Nf6 $11 {[%emt 0:00:25]} 5. d3 {[%emt 0:00:06]} d6 {[%emt 0:00:40]} 6. c3 {[%emt 0:00:20]} a6 {[%emt 0:00:17]} 7. Bb3 {[%emt 0:04:05]} Ba7 {[%emt 0:00:47]} 8. Nbd2 {[%emt 0:00:21]} O-O {[%emt 0:01:45]} 9. Re1 {[%emt 0:00:59]} Ng4 {[%emt 0:01:48]} 10. Re2 {[%emt 0:00:20]} Kh8 {[%emt 0:01:14]} 11. h3 {[%emt 0:01:04]} Nh6 {[%emt 0:00:12]} 12. Nf1 {[%emt 0:03:55]} f5 {[%emt 0:05:53]} 13. d4 {[%emt 0:08:14]} fxe4 {[%emt 0:16:22]} 14. Rxe4 {[%emt 0:00:27]} Qf6 {[%emt 0:06:33]} 15. Ng3 {[%emt 0:15:04]} Nf5 {[%emt 0:11:07]} 16. Bg5 {[%emt 0:04:46]} Qg6 {[%emt 0:00:34]} 17. Rg4 {[%emt 0:00:44]} Qe8 {[%emt 0:17:53]} 18. Bc2 {[%emt 0:11:44]} Nxg3 {[%emt 0:06:37]} 19. Rxg3 {[%emt 0:00:05]} Bf5 {[%emt 0:00:48]} 20. Bxf5 {[%emt 0:05:42]} Rxf5 {[%emt 0:00:06]} 21. Be3 {[%emt 0:00:07]} exd4 {[%emt 0:02:31]} 22. cxd4 {[%emt 0:00:13]} Ne7 {[%emt 0:06:17]} 23. Qd3 {[%emt 0:05:28]} Qb5 {[%emt 0:02:34]} 24. Qe4 {[%emt 0:01:25]} Ng6 {[%emt 0:03:06]} 25. Ne5 {[%emt 0:06:16]} Ne7 {[%emt 0:04:23]} 26. Nf3 {[%emt 0:08:49]} Ng6 {[%emt 0:00:32]} 27. Rc1 {[%emt 0:01:02]} Re8 {[%emt 0:03:32]} 28. Qc2 {[%emt 0:00:43]} c6 {[%emt 0:01:15]} 29. Ne5 {[%emt 0:08:01]} Ne7 {[%emt 0:03:31]} 30. Nf3 {[%emt 0:08:32]} Ref8 {[%emt 0:00:28]} 31. Re1 {[%emt 0:01:07]} Nd5 {[%emt 0:01:33]} 32. Bh6 {[%emt 0:01:33]} g6 {[%emt 0:02:09]} 33. Bxf8 {[%emt 0:00:49]} Rxf8 {[%emt 0:00:02]} 34. Qe4 {[%emt 0:02:09]} Qxb2 {[%emt 0:00:53]} 35. Qh4 {[%emt 0:00:41]} Qc2 {[%emt 0:00:30]} 36. Re4 {[%emt 0:01:49]} Qc1+ {[%emt 0:00:52]} 37. Kh2 {[%emt 0:00:08]} Bb6 {[%emt 0:00:52]} 38. Ng5 {[%emt 0:01:26]} Nf6 {[%emt 0:00:23]} 39. Re7 {[%emt 0:00:18]} h5 {[%emt 0:00:14]} 40. Ne6 {[%emt 0:00:13]} Qh6 {[%emt 0:00:53]} 41. Nxf8 {[%emt 0:30:22]} Qxf8 {[%emt 0:30:12]} 42. Re6 {[%emt 0:00:51]} Bd8 {[%emt 0:00:43]} 43. Qf4 {[%emt 0:00:09]} Kg7 {[%emt 0:00:00]} 44. Rf3 {[%emt 0:00:00]} Be7 {[%emt 0:00:00]} 45. Qe3 {[%emt 0:00:00]} Bd8 {[%emt 0:00:00]} 46. Kg1 {[%emt 0:00:00]} d5 {[%emt 0:00:00]} 47. Qe5 {[%emt 0:00:00]} h4 {[%emt 0:00:00]} 48. g4 {[%emt 0:00:00]} hxg3 {[%emt 0:00:00]} 49. fxg3 {[%emt 0:00:00]} Qf7 {[%emt 0:00:00]} 50. g4 {[%emt 0:00:00]} g5 {[%emt 0:00:00]} 51. h4 {[%emt 0:00:00]} gxh4 {[%emt 0:00:00]} 52. g5 {[%emt 0:00:00]} Qg6 {[%emt 0:00:00]} 53. Rexf6 {[%emt 0:00:00]} Bxf6 {[%emt 0:00:00]} 54. Rxf6 {[%emt 0:00:00]} 1-0

[Event "FIDE Womens World Cup 2021"]
[Site "Sochi"]
[Date "2021.07.12"]
[Round "1.33"]
[White "Afonasieva, Anna"]
[Black "Peng, Zhaoqin"]
[Result "0-1"]
[ECO "D00"]
[WhiteElo "2243"]
[BlackElo "2358"]
[Annotator "NA"]
[PlyCount "100"]
[EventDate "2021.07.12"]
[EventType "k.o."]
[EventCountry "RUS"]
[SourceTitle "playchess.com"]
[Source "ChessBase"]
[SourceQuality "1"]
[TimeControl "40/5400+30:1800+30"]

1. d4 {[%emt 0:00:04]} d5 {[%emt 0:00:06]} 2. Bf4 {[%emt 0:00:06]} e6 {[%emt 0:01:15]} 3. e3 {[%emt 0:00:15]} Nf6 {[%emt 0:00:47]} 4. Nd2 {[%emt 0:00:43]} Bd6 {[%emt 0:01:00]} 5. Bg3 {[%emt 0:00:17]} O-O {[%emt 0:00:28]} 6. Ngf3 {[%emt 0:01:01]} c5 {[%emt 0:00:10]} 7. c3 {[%emt 0:00:22]} Qc7 {[%emt 0:00:24]} 8. dxc5 {[%emt 0:01:00]} Bxg3 {[%emt 0:01:37]} 9. hxg3 {[%emt 0:00:08]} Qxc5 {[%emt 0:00:03]} 10. Bd3 {[%emt 0:00:27]} h6 {[%emt 0:00:11]} 11. Qe2 {[%emt 0:04:16]} Nc6 {[%emt 0:02:38]} 12. Rd1 {[%emt 0:02:06]} Qb6 {[%emt 0:06:52]} 13. Nb3 {[%emt 0:23:10]} e5 {[%emt 0:02:18]} 14. e4 {[%emt 0:07:32]} Bg4 {[%emt 0:15:18]} 15. O-O {[%emt 0:04:34]} Rae8 {[%emt 0:14:36]} 16. Rfe1 {[%emt 0:03:54]} Kh8 {[%emt 0:05:12]} 17. exd5 {[%emt 0:13:18]} e4 {[%emt 0:03:30]} 18. dxc6 {[%emt 0:05:24]} exf3 {[%emt 0:00:19]} 19. Qd2 {[%emt 0:00:58]} fxg2 {[%emt 0:00:37]} 20. Rxe8 {[%emt 0:01:13]} Rxe8 {[%emt 0:00:04]} 21. Re1 {[%emt 0:00:23]} Rxe1+ {[%emt 0:05:50]} 22. Qxe1 {[%emt 0:00:04]} Qxc6 {[%emt 0:00:07]} 23. Qe5 {[%emt 0:11:38]} Qf3 {[%emt 0:09:48]} 24. Bc2 {[%emt 0:00:30]} Be6 {[%emt 0:11:58]} 25. Nd2 {[%emt 0:08:32]} Qxf2+ {[%emt 0:01:10]} 26. Kxf2 {[%emt 0:00:13]} Ng4+ {[%emt 0:00:03]} 27. Kxg2 {[%emt 0:00:12]} Nxe5 {[%emt 0:00:02]} 28. a4 {[%emt 0:01:47]} g5 {[%emt 0:03:22]} 29. Kf2 {[%emt 0:00:25]} Kg7 {[%emt 0:02:48]} 30. Ke3 {[%emt 0:00:40]} f5 {[%emt 0:01:55]} 31. Kd4 {[%emt 0:00:36]} Kf6 {[%emt 0:00:31]} 32. c4 {[%emt 0:04:19]} h5 {[%emt 0:05:03]} 33. Bd1 {[%emt 0:00:50]} g4 {[%emt 0:00:53]} 34. c5 {[%emt 0:00:40]} Nc6+ {[%emt 0:01:41]} 35. Ke3 {[%emt 0:00:42]} Ke5 {[%emt 0:00:34]} 36. Be2 {[%emt 0:01:44]} a5 {[%emt 0:02:20]} 37. Nc4+ {[%emt 0:01:53]} Bxc4 {[%emt 0:02:02]} 38. Bxc4 {[%emt 0:00:03]} Nb4 {[%emt 0:01:13]} 39. Bb5 {[%emt 0:01:49]} Nd5+ {[%emt 0:00:18]} 40. Kf2 {[%emt 0:00:57]} f4 {[%emt 0:00:17]} 41. gxf4+ {[%emt 0:30:55]} Kxf4 {[%emt 0:30:31]} 42. Bd7 {[%emt 0:00:39]} Nb4 {[%emt 0:00:47]} 43. Ke2 {[%emt 0:00:53]} Na6 {[%emt 0:00:25]} 44. c6 {[%emt 0:00:07]} bxc6 {[%emt 0:00:05]} 45. Bxc6 {[%emt 0:00:05]} Nc5 {[%emt 0:00:31]} 46. Kf1 {[%emt 0:00:00]} Kg3 {[%emt 0:00:00]} 47. Kg1 {[%emt 0:00:00]} h4 {[%emt 0:00:00]} 48. Bb5 {[%emt 0:00:00]} h3 {[%emt 0:00:00]} 49. Bc6 {[%emt 0:00:00]} h2+ {[%emt 0:00:00]} 50. Kh1 {[%emt 0:00:00]} Nd3 {[%emt 0:00:00]} 0-1

[Event "FIDE Womens World Cup 2021"]
[Site "Sochi"]
[Date "2021.07.12"]
[Round "1.34"]
[White "Abrahamyan, Tatev"]
[Black "Radeva, Viktoria"]
[Result "1-0"]
[ECO "B43"]
[WhiteElo "2352"]
[BlackElo "2335"]
[Annotator "NA"]
[PlyCount "73"]
[EventDate "2021.07.12"]
[EventType "k.o."]
[EventCountry "RUS"]
[SourceTitle "playchess.com"]
[Source "ChessBase"]
[SourceQuality "1"]
[TimeControl "40/5400+30:1800+30"]

1. e4 {[%emt 0:00:04]} c5 {[%emt 0:00:06]} 2. Nf3 {[%emt 0:00:05]} e6 {[%emt 0:00:05]} 3. d4 {[%emt 0:00:04]} cxd4 {[%emt 0:00:04]} 4. Nxd4 {[%emt 0:00:04]} a6 {[%emt 0:00:05]} 5. Nc3 {[%emt 0:00:16]} Qc7 {[%emt 0:00:14]} 6. Bd3 {[%emt 0:00:48]} Nf6 {[%emt 0:00:11]} 7. f4 {[%emt 0:00:38]} d6 {[%emt 0:00:32]} 8. Qf3 {[%emt 0:00:13]} b5 {[%emt 0:01:55]} 9. g4 {[%emt 0:00:24]} Nc6 {[%emt 0:00:46]} 10. Nxc6 {[%emt 0:24:44]} Qxc6 {[%emt 0:00:08]} 11. g5 {[%emt 0:00:03]} Nd7 {[%emt 0:00:12]} 12. Be3 {[%emt 0:00:06]} Bb7 {[%emt 0:02:10]} 13. a3 {[%emt 0:01:13]} h6 {[%emt 0:01:29]} 14. g6 {[%emt 0:12:45]} f5 {[%emt 0:00:36]} 15. Qh3 {[%emt 0:02:56]} Be7 {[%emt 0:03:08]} 16. O-O-O {[%emt 0:09:03]} Bf6 {[%emt 0:01:25]} 17. Bd2 {[%emt 0:06:36]} Nc5 {[%emt 0:06:50]} 18. Rhe1 {[%emt 0:06:38]} O-O {[%emt 0:14:58]} 19. exf5 {[%emt 0:05:20]} Nxd3+ {[%emt 0:17:22]} 20. Qxd3 {[%emt 0:00:15]} exf5 {[%emt 0:00:18]} 21. Qxf5 {[%emt 0:05:35]} Kh8 {[%emt 0:01:56]} 22. Qd3 {[%emt 0:02:37]} Rfe8 {[%emt 0:08:39]} 23. Ne2 {[%emt 0:08:10]} Qf3 {[%emt 0:11:59]} 24. Ng3 {[%emt 0:02:24]} Rec8 {[%emt 0:08:09]} 25. Kb1 {[%emt 0:03:18]} a5 {[%emt 0:05:15]} 26. Ne4 {[%emt 0:01:53]} Bxe4 {[%emt 0:01:17]} 27. Qxe4 {[%emt 0:00:04]} Qh5 {[%emt 0:03:02]} 28. Bxa5 {[%emt 0:01:54]} Qxh2 {[%emt 0:08:25]} 29. Rxd6 {[%emt 0:01:57]} Qh4 {[%emt 0:01:53]} 30. Bd8 {[%emt 0:02:46]} Qxe1+ {[%emt 0:01:10]} 31. Qxe1 {[%emt 0:00:02]} Rxd8 {[%emt 0:00:06]} 32. Rxf6 {[%emt 0:00:12]} b4 {[%emt 0:01:22]} 33. Rf7 {[%emt 0:01:01]} bxa3 {[%emt 0:00:15]} 34. bxa3 {[%emt 0:01:03]} Rxa3 {[%emt 0:00:47]} 35. Qe5 {[%emt 0:00:43]} Rg8 {[%emt 0:00:30]} 36. f5 {[%emt 0:00:17]} Raa8 {[%emt 0:00:30]} 37. f6 {[%emt 0:00:25]} 1-0